bitfinex-derivatives/quotes_SOLF0:USTF0_20250816
["timestamp","ask_amount","ask_price","bid_price","bid_amount"]
[1755324759768,0.07,186.38,186.35,2.96]
[1755324759969,4.35627722,186.37,186.35,2.96]
[1755324760168,0.07,186.38,186.35,2.96]
[1755324760367,4.35647594,186.37,186.35,5.362]
[1755324760560,0.07,186.38,186.36,2.96]
[1755324760769,131.36,186.39,186.37,5.3614]
[1755324760966,131.36,186.39,186.38,2.96]
[1755324761273,135.71794971,186.39,186.38,2.96]
[1755324761667,135.78794971,186.39,186.38,2.96]
[1755324762771,135.71794971,186.39,186.38,2.96]
[1755324763170,135.78794971,186.39,186.38,2.96]
[1755324763373,135.71794971,186.39,186.38,2.96]
[1755324764467,135.71794971,186.39,186.38,8.3212]
[1755324764778,131.22,186.45,186.38,2.96]
[1755324764969,4.36635659,186.44,186.38,2.96]
[1755324765166,4.36635659,186.43,186.38,2.96]
[1755324765372,4.36635659,186.42,186.38,2.96]
[1755324765675,131.29,186.45,186.42,2.96]
[1755324765974,4.36552977,186.44,186.43,2.96]
[1755324768176,4.3680741,186.44,186.43,2.96]
[1755324768371,4.3680741,186.44,186.41,5.3603]
[1755324768567,4.3680741,186.43,186.41,5.3603]
[1755324768767,4.3680741,186.42,186.41,5.3603]
[1755324769077,4.3680741,186.42,186.41,8.2303]
[1755324772180,4.45580175,186.48,186.42,2.87]
[1755324772570,4.52580175,186.49,186.42,2.87]
[1755324773174,4.52580175,186.49,186.45,5.359]
[1755324773374,0.07,186.48,186.46,2.87]
[1755324773572,4.45580175,186.49,186.46,2.87]
[1755324773779,4.52580175,186.49,186.46,2.87]
[1755324774572,4.52580175,186.48,186.46,2.87]
[1755324774778,4.52580175,186.48,186.46,2.90499617]
[1755324775171,0.07,186.47,186.46,2.90499617]
[1755324775378,0.07,186.46,186.39,2.87]
[1755324775685,4.52865194,186.45,186.39,2.87]
[1755324776877,0.03608418,186.44,186.39,2.87]
[1755324777270,0.03608418,186.44,186.41,2.87]
[1755324777875,0.03608418,186.44,186.41,8.2303]
[1755324778078,0.03608418,186.44,186.42,2.87]
[1755324780881,0.03608418,186.44,186.33,101.90217928]
[1755324781087,0.10608418,186.44,186.43,2.87]
[1755324781276,0.07,186.43,186.34,2.87]
[1755324782980,4.45865194,186.43,186.34,2.87]
[1755324783186,0.07,186.42,186.34,2.87]
[1755324783484,0.07,186.42,186.3,2.90217928]
[1755324783686,0.07,186.42,186.31,2.87]
[1755324783884,0.03667823,186.38,186.31,2.87]
[1755324784383,0.03667823,186.38,186.36,2.87]
[1755324784777,0.03667823,186.38,186.37,5.3615]
[1755324784975,4.38027887,186.38,186.37,8.2315]
[1755324785482,4.38027887,186.38,186.37,2.87]
[1755324787277,4.45027887,186.38,186.37,8.2315]
[1755324787482,4.45027887,186.38,186.37,2.87]
[1755324787680,4.45017186,186.38,186.37,2.87]
[1755324788186,4.38017186,186.38,186.37,2.87]
[1755324795093,4.38038654,186.38,186.37,2.87]
[1755324807702,4.45038654,186.38,186.34,2.96]
[1755324807903,4.34370831,186.37,186.34,2.96]
[1755324808200,0.10667823,186.38,186.34,2.96]
[1755324808201,4.34370831,186.36,186.34,2.96]
[1755324808401,0.10667823,186.38,186.34,2.96]
[1755324808599,4.35100488,186.37,186.34,2.96]
[1755324808798,4.35100488,186.36,186.34,2.96]
[1755324809099,4.35100488,186.35,186.34,2.96]
[1755324809794,4.35100488,186.35,186.34,8.3223]
[1755324813700,0.10667823,186.38,186.34,8.3223]
[1755324813901,4.35249749,186.37,186.35,2.96]
[1755324814101,4.35249749,186.36,186.35,2.96]
[1755324814403,4.35249749,186.36,186.35,8.3221]
[1755324815902,4.35249749,186.36,186.35,2.96]
[1755324816405,4.35249749,186.36,186.35,8.3221]
[1755324823496,4.42249749,186.36,186.34,8.3223]
[1755324823698,4.35249749,186.35,186.34,5.3623]
[1755324824203,4.35249749,186.35,186.34,8.3223]
[1755324824403,4.35249749,186.35,186.34,5.3623]
[1755324824604,4.35249749,186.35,186.34,8.3223]
[1755324824804,0.07,186.34,186.33,8.3226]
[1755324825005,4.35249749,186.34,186.33,8.3226]
[1755324834520,4.35249749,186.34,186.32,5.3628]
[1755324834722,4.42249749,186.33,186.32,8.3428]
[1755324834916,4.42249749,186.33,186.32,2.98]
[1755324835116,4.35249749,186.33,186.32,2.98]
[1755324836626,4.35249749,186.33,186.32,8.3429]
[1755324839530,4.3623922,186.33,186.32,8.3429]
[1755324841329,4.3623922,186.33,186.32,2.98]
[1755324841925,4.3623922,186.33,186.26,1.85676875]
[1755324842123,1.92676875,186.31,186.27,2.98]
[1755324842325,0.07,186.28,186.21,2.98]
[1755324842629,4.3623922,186.27,186.21,2.98]
[1755324842831,4.3623922,186.26,186.21,2.98]
[1755324843130,4.3623922,186.25,186.21,2.98]
[1755324843324,0.03438446,186.26,186.2,1.85676875]
[1755324843627,4.35207273,186.25,186.23,2.98]
[1755324843825,0.03438446,186.26,186.25,8.3449]
[1755324844030,4.38645719,186.26,186.25,8.3449]
[1755324846429,0.03438446,186.26,186.25,8.3449]
[1755324863250,0.10438446,186.26,186.25,8.3449]
[1755324863645,0.03438446,186.26,186.25,8.3449]
[1755324870953,0.03438446,186.26,186.25,10.20166875]
[1755324872347,0.07,186.35,186.34,3.12]
[1755324872555,4.42037565,186.35,186.34,3.12]
[1755324872952,4.42037565,186.35,186.34,8.4825]
[1755324873351,4.35037565,186.35,186.34,8.4825]
[1755324873952,6.43350172,186.39,186.33,0.03482374]
[1755324873953,1.95676875,186.39,186.37,3.12]
[1755324874156,4.45193826,186.38,186.37,3.12]
[1755324877658,4.35193826,186.38,186.37,3.12]
[1755324878655,0.1,186.37,186.34,3.12]
[1755324878851,4.34915411,186.36,186.33,0.03482374]
[1755324879153,0.1,186.34,186.33,0.03482374]
[1755324879358,4.44915411,186.34,186.33,0.03482374]
[1755324882652,4.34915411,186.34,186.28,3.12]
[1755324882856,0.07,186.3,186.29,3.12]
[1755324883057,0.07,186.3,186.21,360.5]
[1755324883058,0.07,186.29,186.25,3.12]
[1755324883259,4.34898375,186.28,186.25,3.12]
[1755324883461,0.07,186.28,186.25,3.12]
[1755324883859,0.10933532,186.28,186.25,3.12]
[1755324884465,0.03933532,186.28,186.25,3.12]
[1755324885164,0.10933532,186.28,186.25,3.12]
[1755324885961,0.03933532,186.28,186.25,3.12]
[1755324886560,0.10933532,186.28,186.25,3.12]
[1755324886864,4.35054171,186.27,186.25,3.12]
[1755324887065,0.07,186.27,186.25,3.12]
[1755324887364,5.3645,186.27,186.25,3.12]
[1755324887865,5.40363532,186.28,186.25,3.12]
[1755324888066,4.35049348,186.27,186.25,3.12]
[1755324888265,5.40363532,186.28,186.25,3.12]
[1755324888564,4.35056303,186.27,186.25,3.12]
[1755324888865,5.40363532,186.28,186.25,3.12]
[1755324889065,4.35056303,186.27,186.25,3.12]
[1755324889261,5.40363532,186.28,186.25,3.12]
[1755324889466,4.35074898,186.27,186.26,3.03]
[1755324889968,0.03933532,186.28,186.26,3.03]
[1755324890658,0.03933532,186.28,186.27,5.3645]
[1755324890863,0.03933532,186.28,186.27,8.3945]
[1755324900371,4.47673297,186.36,186.26,3.03]
[1755324900566,8.96120106,186.41,186.31,3.03]
[1755324900567,4.34598421,186.35,186.31,3.03]
[1755324900772,4.47673297,186.42,186.34,3.03]
[1755324900973,4.45662903,186.41,186.34,3.03]
[1755324901174,4.45662903,186.4,186.34,3.03]
[1755324901369,4.45662903,186.39,186.34,3.03]
[1755324901572,0.11,186.37,186.28,2.90449979]
[1755324901773,0.07,186.35,186.24,3.03]
[1755324901972,0.07,186.31,186.28,5.3641]
[1755324902373,5.4335,186.31,186.29,3.03]
[1755324902578,4.34571403,186.3,186.29,3.03]
[1755324902778,5.4335,186.31,186.29,3.03]
[1755324903183,0.07,186.29,186.27,3.03]
[1755324903383,0.07,186.3,186.28,3.03]
[1755324903883,5.3639,186.29,186.28,3.03]
[1755324904382,5.4337,186.3,186.28,3.03]
[1755324904783,5.3637,186.3,186.28,3.03]
[1755324904985,9.7780741,186.29,186.28,3.03]
[1755324905181,9.7080741,186.29,186.28,3.03]
[1755324910980,4.3441741,186.29,186.28,3.03]
[1755324911488,4.3441741,186.29,186.28,8.3942]
[1755324911688,4.3441741,186.29,186.23,2.90449979]
[1755324911689,0.03798134,186.31,186.29,3.03]
[1755324911886,4.34564066,186.3,186.29,3.03]
[1755324912087,4.34564066,186.3,186.29,8.3939]
[1755324912288,0.03798134,186.31,186.29,3.03]
[1755324912590,0.03798134,186.31,186.3,8.3936]
[1755324925495,0.03798134,186.31,186.29,5.3638]
[1755324925694,0.03798134,186.31,186.29,3.02]
[1755324926000,4.40492956,186.3,186.29,3.02]
[1755324926400,9.69852956,186.3,186.29,3.02]
[1755324928298,9.69852956,186.3,186.27,5.3642]
[1755324928595,0.03798134,186.31,186.28,3.02]
[1755324928596,9.76882956,186.29,186.28,3.02]
[1755324929800,4.33492956,186.29,186.28,3.02]
[1755324930505,0.03983106,186.3,186.28,3.02]
[1755324931305,0.03983106,186.3,186.29,3.02]
[1755324931501,4.37520488,186.3,186.29,3.02]
[1755324932304,4.37520488,186.3,186.29,8.3839]
[1755324934099,0.03983106,186.3,186.29,8.3839]
[1755324940004,4.47673297,186.38,186.29,3.02]
[1755324940204,4.33720276,186.37,186.29,3.02]
[1755324940406,4.33720276,186.36,186.35,8.3821]
[1755324941010,72.00504566,186.41,186.36,3.02]
[1755324941204,4.44712669,186.4,186.36,3.02]
[1755324941404,4.44712669,186.39,186.36,3.02]
[1755324941707,4.33712669,186.38,186.37,5.3613]
[1755324941908,4.33712669,186.38,186.37,8.3813]
[1755324942108,4.44712669,186.38,186.37,3.02]
[1755324942409,4.44712669,186.38,186.36,3.02]
[1755324942611,0.11,186.37,186.36,3.02]
[1755324942915,0.11,186.36,186.34,0.03663173]
[1755324943505,4.47673297,186.4,186.34,0.03663173]
[1755324943707,0.11,186.35,186.34,0.03663173]
[1755324943911,0.07,186.34,186.28,3.02]
[1755324944107,0.07,186.32,186.29,3.02]
[1755324944309,4.39922647,186.31,186.29,3.02]
[1755324944603,0.07,186.34,186.29,3.02]
[1755324944803,4.47673297,186.35,186.23,130.78]
[1755324944804,0.07,186.32,186.23,130.78]
[1755324945009,0.07,186.3,186.28,3.02]
[1755324945210,0.07,186.3,186.29,3.02]
[1755324946712,0.07,186.34,186.29,5.3637]
[1755324946914,4.32879511,186.33,186.25,3.02]
[1755324947214,4.32879511,186.32,186.25,3.02]
[1755324947409,4.32879511,186.31,186.3,8.3834]
[1755324947908,4.32879511,186.31,186.3,3.02]
[1755324949405,4.40879511,186.31,186.25,2.92]
[1755324949612,0.08,186.29,186.25,2.92]
[1755324949808,4.47673297,186.33,186.25,2.92]
[1755324950009,4.40828345,186.32,186.25,2.92]
[1755324950216,7.38123276,186.34,186.25,2.92]
[1755324950217,9.77178345,186.31,186.25,2.92]
[1755324950422,4.32828345,186.3,186.28,2.92]
[1755324950713,5.3633,186.31,186.29,2.92]
[1755324950907,4.32855144,186.3,186.29,2.92]
[1755324951508,9.77205144,186.3,186.29,2.92]
[1755324952106,5.3638,186.29,186.26,5.3646]
[1755324952310,5.4438,186.29,186.27,2.92]
[1755324952507,5.4438,186.29,186.28,2.92]
[1755324952717,9.77270067,186.29,186.28,2.92]
[1755324953217,9.69270067,186.29,186.28,2.92]
[1755324954910,4.32890067,186.29,186.28,2.92]
[1755324955820,4.32890067,186.29,186.28,8.2841]
[1755324957623,4.47673297,186.36,186.31,2.92]
[1755324957925,4.33159455,186.35,186.31,2.92]
[1755324958223,9.77419455,186.34,186.31,2.92]
[1755324958422,4.33159455,186.33,186.31,2.92]
[1755324958620,4.33159455,186.32,186.31,2.92]
[1755324960023,4.33159455,186.32,186.31,8.2832]
[1755324960425,4.47673297,186.37,186.31,2.92]
[1755324960633,9.695384,186.36,186.33,5.3625]
[1755324960818,4.333484,186.35,186.34,2.92]
[1755324961024,9.695584,186.35,186.34,2.92]
[1755324961230,0.08,186.34,186.28,2.92]
[1755324961421,4.333484,186.33,186.28,2.92]
[1755324961622,4.333484,186.32,186.29,5.3637]
[1755324961923,5.3627,186.33,186.3,2.92]
[1755324962120,4.33272723,186.32,186.3,2.92]
[1755324962323,5.3627,186.33,186.3,2.92]
[1755324962522,4.3335918,186.32,186.3,2.92]
[1755324962827,5.3627,186.33,186.3,2.92]
[1755324963024,4.33318537,186.32,186.3,2.92]
[1755324963224,5.3627,186.33,186.3,5.3635]
[1755324963427,4.33318142,186.32,186.31,2.92]
[1755324963932,9.69608142,186.32,186.31,2.92]
[1755324964129,9.77608142,186.32,186.31,2.92]
[1755324965526,9.69608142,186.32,186.31,2.92]
[1755324965827,4.33318142,186.32,186.31,2.92]
[1755324966027,0.08,186.32,186.24,2.90449979]
[1755324966228,9.6979612,186.31,186.3,2.92]
[1755324967539,9.7779612,186.31,186.3,2.92]
[1755324967842,0.08,186.29,186.21,147.07110102]
[1755324968041,4.3346612,186.28,186.22,2.92]
[1755324968239,5.3646,186.27,186.24,2.92]
[1755324968942,5.3646,186.27,186.24,8.2852]
[1755324969136,5.3642,186.28,186.25,2.92]
[1755324969534,0.08,186.29,186.25,2.92]
[1755324969734,4.33436929,186.28,186.25,2.92]
[1755324969933,0.08,186.29,186.25,2.92]
[1755324970140,4.33436929,186.28,186.25,2.92]
[1755324970339,5.3644,186.27,186.25,2.92]
[1755324970637,5.3644,186.27,186.25,5.365]
[1755324970842,5.3642,186.28,186.26,2.92]
[1755324971041,0.08,186.31,186.26,2.92]
[1755324971244,4.33431026,186.3,186.26,2.92]
[1755324971443,4.33431026,186.29,186.26,2.92]
[1755324971639,4.33431026,186.28,186.26,2.92]
[1755324971839,0.08,186.31,186.26,2.92]
[1755324972039,4.33420537,186.3,186.26,2.92]
[1755324972238,4.33420537,186.29,186.28,2.92]
[1755324973346,4.33420537,186.29,186.21,48.07110102]
[1755324973347,4.41420537,186.29,186.21,48.07110102]
[1755324973545,4.33420537,186.28,186.27,2.92]
[1755324974342,9.69830537,186.28,186.27,2.92]
[1755324974648,9.77830537,186.28,186.27,2.92]
[1755324975445,9.69830537,186.28,186.27,2.92]
[1755324975849,9.77830537,186.28,186.25,2.92]
[1755324976149,5.4441,186.28,186.25,2.92]
[1755324976452,0.08,186.31,186.21,2.92]
[1755324976649,0.08,186.29,186.21,2.92]
[1755324976950,5.3649,186.26,186.22,5.3657]
[1755324977246,4.41255831,186.25,186.16,2.92]
[1755324977450,5.366,186.22,186.18,5.3667]
[1755324977638,5.366,186.22,186.19,2.92]
[1755324978151,0.08,186.25,186.16,2.92]
[1755324978349,0.07,186.23,186.15,2.92]
[1755324978550,4.39852039,186.22,186.15,2.92]
[1755324978750,4.32852039,186.21,186.15,2.92]
[1755324978945,5.3662,186.21,186.17,5.3671]
[1755324979152,0.07,186.22,186.13,2.92]
[1755324979745,5.3661,186.21,186.18,5.3667]
[1755324979951,0.07,186.22,186.19,2.92]
[1755324980540,5.436,186.22,186.2,2.92]
[1755324980746,5.366,186.22,186.21,2.92]
[1755324980950,5.3657,186.23,186.21,2.92]
[1755324981348,5.3657,186.23,186.22,2.92]
[1755324983548,0.07,186.27,186.22,2.92]
[1755324983745,4.31659656,186.26,186.22,2.92]
[1755324984046,5.365,186.25,186.22,8.2856]
[1755324984342,5.365,186.25,186.23,2.92]
[1755324984739,2.90449979,186.29,186.23,2.92]
[1755324984740,0.07,186.29,186.23,2.92]
[1755324984944,4.31647295,186.28,186.23,2.92]
[1755324985141,0.07,186.31,186.23,2.92]
[1755324985349,5.3644,186.27,186.25,2.92]
[1755324985853,5.3641,186.28,186.25,5.3649]
[1755324986053,5.3641,186.28,186.26,2.92]
[1755324986849,5.3639,186.29,186.27,2.92]
[1755324987045,0.07,186.32,186.27,2.92]
[1755324987252,4.33372196,186.31,186.27,2.92]
[1755324987452,5.3633,186.31,186.28,2.92]
[1755324987857,0.07,186.34,186.28,2.92]
[1755324988056,5.3631,186.32,186.29,2.92]
[1755324988246,4.33391972,186.31,186.29,2.92]
[1755324988447,5.3631,186.32,186.29,2.92]
[1755324988650,4.33523411,186.31,186.29,2.92]
[1755324988956,0.07,186.32,186.3,2.92]
[1755324989157,4.33519376,186.31,186.28,2.92]
[1755324989345,0.07,186.34,186.28,2.92]
[1755324989548,4.40419539,186.33,186.28,2.92]
[1755324989750,4.33419539,186.32,186.28,2.92]
[1755324989959,9.69759539,186.31,186.28,2.92]
[1755324990156,5.3634,186.31,186.28,2.92]
[1755324991758,5.3634,186.31,186.28,8.284]
[1755324991972,0.07,186.33,186.29,2.92]
[1755324991973,5.363,186.32,186.29,2.92]
[1755324992158,4.33416064,186.31,186.29,2.92]
[1755324992458,5.363,186.32,186.29,2.92]
[1755324992656,4.33423716,186.31,186.29,2.92]
[1755324992959,5.363,186.32,186.29,2.92]
[1755324993158,4.33446849,186.31,186.29,2.92]
[1755324993359,5.363,186.32,186.29,2.92]
[1755324993657,4.33547975,186.31,186.29,2.92]
[1755324993855,5.363,186.32,186.29,2.92]
[1755324994057,4.33478121,186.31,186.29,2.92]
[1755324994258,5.363,186.32,186.29,2.92]
[1755324994555,0.07,186.3,186.23,2.92]
[1755324994858,4.40453513,186.29,186.23,2.92]
[1755324995062,5.434,186.29,186.25,2.92]
[1755324995252,4.33388128,186.28,186.25,2.92]
[1755324995451,5.434,186.29,186.25,2.92]
[1755324995657,4.33387847,186.28,186.25,2.92]
[1755324995858,4.33347973,186.27,186.2,2.92]
[1755324996161,0.07,186.27,186.2,2.92]
[1755324997055,5.3647,186.26,186.22,5.3656]
[1755324997262,5.3647,186.26,186.23,2.92]
[1755324998862,5.4344,186.27,186.23,2.92]
[1755324999063,0.07,186.29,186.24,2.92]
[1755324999268,4.33309677,186.28,186.24,2.92]
[1755324999461,0.07,186.32,186.24,2.92]
[1755324999661,4.33348411,186.31,186.24,2.92]
[1755324999961,4.40348411,186.3,186.26,2.92]
[1755325000159,4.40348411,186.29,186.26,2.92]
[1755325000354,4.33348411,186.28,186.26,2.92]
[1755325000558,0.07,186.29,186.26,2.92]
[1755325000765,4.3327278,186.28,186.26,2.92]
[1755325000960,0.07,186.29,186.26,2.92]
[1755325001163,4.33272815,186.28,186.26,2.92]
[1755325001462,5.3638,186.29,186.26,2.92]
[1755325001664,4.333032,186.28,186.26,2.92]
[1755325001864,5.3638,186.29,186.26,2.92]
[1755325002063,2.97449979,186.33,186.27,2.92]
[1755325002367,0.07,186.31,186.27,2.92]
[1755325002565,5.4338,186.29,186.28,2.92]
[1755325002765,9.76986448,186.29,186.28,2.92]
[1755325003468,9.69986448,186.29,186.28,2.92]
[1755325004668,4.33606448,186.29,186.28,2.92]
[1755325004869,0.07,186.33,186.28,2.92]
[1755325005065,4.33603138,186.32,186.28,2.92]
[1755325005266,4.33603138,186.31,186.29,2.92]
[1755325005466,4.46900298,186.36,186.29,2.92]
[1755325005666,4.3357739,186.35,186.29,2.92]
[1755325005863,4.3357739,186.34,186.29,2.92]
[1755325006067,4.46900298,186.4,186.29,2.92]
[1755325006265,4.33678566,186.39,186.32,2.92]
[1755325006466,4.33678566,186.38,186.32,2.92]
[1755325006668,71.96504566,186.41,186.32,2.92]
[1755325006968,4.33679216,186.4,186.32,2.92]
[1755325007168,4.33679216,186.39,186.32,2.92]
[1755325007369,71.96504566,186.41,186.32,2.92]
[1755325007566,4.33485923,186.4,186.32,2.92]
[1755325007870,4.33485923,186.39,186.32,2.92]
[1755325008077,71.89504566,186.41,186.32,2.92]
[1755325008273,4.33306827,186.4,186.32,2.92]
[1755325008472,71.89504566,186.41,186.32,2.92]
[1755325008672,4.33316298,186.4,186.32,2.92]
[1755325008873,0.07,186.45,186.35,2.91]
[1755325009074,4.33349247,186.44,186.35,2.91]
[1755325009374,4.33349247,186.43,186.4,2.91]
[1755325009574,4.33349247,186.42,186.4,2.91]
[1755325009775,0.07,186.44,186.4,2.91]
[1755325009976,4.33084532,186.43,186.4,2.91]
[1755325010182,0.07,186.44,186.4,2.91]
[1755325010475,0.07,186.46,186.4,8.2704]
[1755325010674,4.32853294,186.45,186.41,2.91]
[1755325010975,0.07,186.46,186.41,2.91]
[1755325011171,0.07,186.49,186.41,2.91]
[1755325011370,4.32559901,186.48,186.41,2.91]
[1755325011571,0.07,186.51,186.41,2.91]
[1755325011766,4.32635486,186.5,186.41,2.91]
[1755325011974,4.32635486,186.49,186.41,2.91]
[1755325012172,7.37350277,186.55,186.43,2.90449979]
[1755325012471,4.39118534,186.54,186.5,2.91]
[1755325012684,4.32118534,186.53,186.5,2.91]
[1755325012973,0.04115106,186.51,186.5,2.91]
[1755325015777,0.04115106,186.51,186.5,8.2677]
[1755325018080,0.07,186.62,186.53,5.3568]
[1755325018278,0.11,186.6,186.54,2.91]
[1755325018577,4.4057769,186.59,186.54,2.91]
[1755325018776,0.11,186.59,186.54,2.91]
[1755325019181,0.11,186.62,186.53,2.91]
[1755325019471,0.11,186.6,186.55,2.94489117]
[1755325019675,0.11,186.58,186.55,2.94489117]
[1755325019975,0.11,186.58,186.56,2.91]
[1755325020783,0.11,186.58,186.55,0.03489117]
[1755325020784,7.37350277,186.63,186.57,2.91]
[1755325020983,0.11,186.59,186.57,2.91]
[1755325021477,0.11,186.59,186.55,0.03489117]
[1755325021676,0.11,186.62,186.56,2.91]
[1755325021881,4.39804764,186.61,186.56,2.91]
[1755325022077,4.28804764,186.6,186.56,2.91]
[1755325022873,4.28804764,186.6,186.57,2.91]
[1755325023072,0.11,186.61,186.57,2.91]
[1755325023277,0.11,186.62,186.57,2.91]
[1755325023480,4.28127887,186.61,186.57,2.91]
[1755325023783,4.28127887,186.6,186.57,2.91]
[1755325023987,0.11,186.63,186.57,2.91]
[1755325024186,4.39091657,186.62,186.57,2.94494378]
[1755325024385,4.28091657,186.61,186.57,2.94494378]
[1755325025285,4.28091657,186.6,186.57,2.94494378]
[1755325025481,0.11,186.61,186.57,2.94494378]
[1755325025686,4.27767838,186.6,186.57,2.94494378]
[1755325025887,0.11,186.61,186.57,2.94494378]
[1755325026092,4.2781779,186.6,186.57,2.94494378]
[1755325026381,0.11,186.61,186.57,2.94494378]
[1755325026685,4.27691405,186.6,186.57,2.94494378]
[1755325026982,0.11,186.61,186.57,2.94494378]
[1755325027189,4.27650648,186.6,186.57,2.94494378]
[1755325027381,4.27650648,186.59,186.57,2.94494378]
[1755325027587,0.11,186.62,186.57,2.94494378]
[1755325027888,4.27536531,186.61,186.57,2.94494378]
[1755325028183,4.27536531,186.6,186.57,2.94494378]
[1755325028387,4.27536531,186.59,186.57,2.94494378]
[1755325028583,0.11,186.62,186.57,2.94494378]
[1755325028789,4.27411726,186.61,186.57,2.94494378]
[1755325028988,4.27411726,186.6,186.57,2.94494378]
[1755325029283,4.27411726,186.59,186.57,2.94494378]
[1755325029485,4.27354023,186.58,186.57,2.94494378]
[1755325030593,0.11,186.62,186.57,2.94494378]
[1755325030890,4.27339092,186.61,186.57,2.94494378]
[1755325031078,4.27339092,186.6,186.57,2.94494378]
[1755325031281,4.27339092,186.59,186.57,2.94494378]
[1755325031484,4.27339092,186.58,186.57,2.94494378]
[1755325032189,2.90449979,186.66,186.57,2.94494378]
[1755325032190,1.24889784,186.73,186.58,2.91]
[1755325032390,16.1,186.88,186.57,362.99944357]
[1755325032391,2.87,186.71,186.62,2.91]
[1755325032582,2.87,186.71,186.68,5.3524]
[1755325032784,2.87,186.74,186.68,2.91]
[1755325033289,2.87,186.73,186.7,2.91]
[1755325033493,141.84,186.79,186.72,2.91]
[1755325033692,141.84,186.79,186.73,5.29642179]
[1755325033889,360.06,186.83,186.74,8.20092158]
[1755325034192,501.92,186.83,186.75,5.29642179]
[1755325034391,501.92,186.83,186.72,2.95010434]
[1755325034596,501.92,186.83,186.72,2.91]
[1755325034992,501.92,186.83,186.76,0.03971542]
[1755325035495,0.59,186.82,186.76,0.03971542]
[1755325035898,3.49449979,186.82,186.76,0.03971542]
[1755325036293,0.59,186.81,186.76,0.03971542]
[1755325036995,0.59,186.78,186.76,0.03971542]
[1755325037192,142.49,186.77,186.76,0.03971542]
[1755325043596,141.9,186.77,186.76,2.93971542]
[1755325043799,141.16,186.78,186.77,2.9]
[1755325045510,362.96449979,186.83,186.76,0.03971542]
[1755325045511,0.58,186.82,186.79,2.9]
[1755325045702,141.06,186.81,186.8,2.9]
[1755325046407,141.06,186.81,186.76,0.03971542]
[1755325046601,0.57,186.78,186.76,0.03971542]
[1755325046810,141.04,186.77,186.76,2.93971542]
[1755325047005,141.61,186.77,186.76,2.93971542]
[1755325047410,141.61,186.77,186.76,0.03971542]
[1755325047798,141.61,186.77,186.76,2.93971542]
[1755325048000,141.04,186.77,186.76,2.93971542]
[1755325048406,0.57,186.81,186.76,2.93971542]
[1755325048604,140.88,186.8,186.76,2.93971542]
[1755325049009,141.45,186.8,186.78,2.9]
[1755325049199,0.57,186.82,186.77,2.9]
[1755325049405,141.43,186.81,186.77,2.9]
[1755325050304,141.43,186.81,186.77,5.3499]
[1755325050504,0.57,186.8,186.78,2.9]
[1755325050707,0.57,186.78,186.76,0.03971542]
[1755325050904,141.37,186.77,186.76,0.03971542]
[1755325052006,0.57,186.76,186.7,2.9]
[1755325052206,0.57,186.72,186.6,2.90449979]
[1755325052412,0.57,186.7,186.65,2.9]
[1755325054316,0.57,186.7,186.65,8.2534]
[1755325054518,0.57,186.7,186.65,5.3534]
[1755325054817,140.78,186.71,186.67,5.3526]
[1755325055014,140.78,186.71,186.68,2.9]
[1755325055322,140.78,186.71,186.69,5.3522]
[1755325055515,140.78,186.71,186.7,2.9]